[Event "UKR-chT 2019"]
[Site "Chornomorsk"]
[Date "2019.05.25"]
[Round "6.4"]
[White "Brodsky, Michail"]
[Black "Malovanyi, Yulian"]
[Result "1/2-1/2"]
[ECO "D07"]
[WhiteElo "2535"]
[BlackElo "2260"]
[Annotator "ChessBase"]
[PlyCount "52"]
[EventDate "2019.05.20"]
[EventCountry "UKR"]
[SourceTitle "playchess.com"]
[Source "ChessBase"]
[SourceQuality "1"]
[TimeControl "40/5400+30:1800+30"]

1. d4 {[%emt 0:00:00]} d5 {[%emt 0:00:00]} 2. c4 {[%emt 0:00:00]} Nc6 {[%emt 0:00:00]} 3. Nc3 {[%emt 0:00:00]} dxc4 {[%emt 0:03:42]} 4. Nf3 {[%emt 0:00:34]} Nf6 {[%emt 0:00:18]} 5. Bg5 {[%emt 0:00:08]} h6 {[%emt 0:00:38]} 6. Bh4 {[%emt 0:00:06]} a6 {[%emt 0:01:45]} 7. e4 {[%emt 0:00:14]} Bg4 {[%emt 0:30:51]} 8. d5 {[%emt 0:01:54]} Ne5 {[%emt 0:00:23]} 9. Bg3 {[%emt 0:00:22]} Nfd7 {[%emt 0:02:16]} 10. Be2 {[%emt 0:00:09]} Bxf3 {[%emt 0:00:37]} 11. gxf3 {[%emt 0:00:06]} g5 {[%emt 0:01:24]} 12. f4 {[%emt 0:02:21]} Ng6 {[%emt 0:18:09]} 13. fxg5 {[%emt 0:00:14]} hxg5 {[%emt 0:00:08]} 14. Qd4 {[%emt 0:00:06]} Rg8 {[%emt 0:02:51]} 15. Qxc4 {[%emt 0:00:34]} Bg7 {[%emt 0:09:15]} 16. Bxc7 {[%emt 0:07:19]} Nge5 {[%emt 0:05:24]} 17. Bxd8 {[%emt 0:02:47]} Nxc4 {[%emt 0:00:03]} 18. Bxc4 {[%emt 0:00:56]} Rxd8 {[%emt 0:01:26]} 19. Ke2 {[%emt 0:01:20]} Bxc3 {[%emt 0:03:37]} 20. bxc3 {[%emt 0:00:06]} Rc8 {[%emt 0:00:06]} 21. Bb3 {[%emt 0:04:46]} Rxc3 {[%emt 0:01:21]} 22. Rac1 {[%emt 0:00:14]} Rxc1 {[%emt 0:01:14]} 23. Rxc1 {[%emt 0:00:03]} Kd8 {[%emt 0:00:13]} 24. Rg1 {[%emt 0:00:26]} Rh8 {[%emt 0:07:34]} 25. Rxg5 {[%emt 0:05:04]} Rxh2 {[%emt 0:00:09]} 26. Rg7 {[%emt 0:18:25]} f6 {[%emt 0:05:41]} 1/2-1/2

[Event "UKR-chT 2019"]
[Site "Chornomorsk"]
[Date "2019.05.25"]
[Round "6.5"]
[White "Kushko, Dmitriy"]
[Black "Omelja, Artem"]
[Result "1/2-1/2"]
[ECO "A06"]
[WhiteElo "2255"]
[BlackElo "2451"]
[Annotator "ChessBase"]
[PlyCount "69"]
[EventDate "2019.05.20"]
[EventCountry "UKR"]
[SourceTitle "playchess.com"]
[Source "ChessBase"]
[SourceQuality "1"]
[TimeControl "40/5400+30:1800+30"]

1. Nf3 {[%emt 0:00:00]} d5 {[%emt 0:01:08]} 2. g3 {[%emt 0:00:00]} g6 {[%emt 0:00:37]} 3. Bg2 {[%emt 0:00:01]} Bg7 {[%emt 0:00:08]} 4. O-O {[%emt 0:00:35]} e5 {[%emt 0:00:07]} 5. d3 {[%emt 0:00:06]} Ne7 {[%emt 0:00:10]} 6. e4 {[%emt 0:00:08]} O-O {[%emt 0:00:23]} 7. exd5 {[%emt 0:00:07]} Nxd5 {[%emt 0:00:10]} 8. Re1 {[%emt 0:00:05]} Nc6 {[%emt 0:00:10]} 9. Nc3 {[%emt 0:00:07]} Nde7 {[%emt 0:01:22]} 10. Rb1 {[%emt 0:00:32]} a5 {[%emt 0:02:30]} 11. b3 {[%emt 0:01:04]} h6 {[%emt 0:01:21]} 12. Bb2 {[%emt 0:00:10]} g5 {[%emt 0:00:25]} 13. Nb5 {[%emt 0:04:55]} Ng6 {[%emt 0:00:36]} 14. d4 {[%emt 0:00:37]} exd4 {[%emt 0:01:29]} 15. Nbxd4 {[%emt 0:01:05]} Nxd4 {[%emt 0:00:46]} 16. Bxd4 {[%emt 0:02:11]} Bg4 {[%emt 0:04:16]} 17. Bxg7 {[%emt 0:00:27]} Kxg7 {[%emt 0:00:17]} 18. h3 {[%emt 0:01:03]} Bxf3 {[%emt 0:03:46]} 19. Qxf3 {[%emt 0:05:55]} c6 {[%emt 0:00:08]} 20. Rbd1 {[%emt 0:00:09]} Qf6 {[%emt 0:00:09]} 21. Qxf6+ {[%emt 0:00:21]} Kxf6 {[%emt 0:00:08]} 22. Rd6+ {[%emt 0:00:08]} Kg7 {[%emt 0:00:11]} 23. Rd7 {[%emt 0:00:35]} Rab8 {[%emt 0:01:13]} 24. Red1 {[%emt 0:15:07]} Rfe8 {[%emt 0:00:46]} 25. Kf1 {[%emt 0:00:13]} Nf8 {[%emt 0:01:59]} 26. R7d6 {[%emt 0:02:40]} Re5 {[%emt 0:05:28]} 27. Bf3 {[%emt 0:01:19]} Rbe8 {[%emt 0:01:50]} 28. Rd8 {[%emt 0:01:37]} Re1+ {[%emt 0:01:44]} 29. Rxe1 {[%emt 0:02:21]} Rxd8 {[%emt 0:00:08]} 30. Re7 {[%emt 0:00:15]} Rd7 {[%emt 0:01:38]} 31. Re5 {[%emt 0:01:12]} Rd2 {[%emt 0:02:07]} 32. Rxa5 {[%emt 0:04:44]} Rxc2 {[%emt 0:00:09]} 33. Ra7 {[%emt 0:00:19]} Nd7 {[%emt 0:03:56]} 34. Rxb7 {[%emt 0:14:21]} Ne5 {[%emt 0:01:36]} 35. Be4 {[%emt 0:01:47]} 1/2-1/2

[Event "UKR-chT 2019"]
[Site "Chornomorsk"]
[Date "2019.05.25"]
[Round "6.6"]
[White "Zavgorodniy, Sergiy"]
[Black "Laptii, Nazar"]
[Result "1-0"]
[ECO "B01"]
[WhiteElo "2420"]
[BlackElo "2080"]
[Annotator "NA"]
[PlyCount "87"]
[EventDate "2019.05.20"]
[EventCountry "UKR"]
[SourceTitle "playchess.com"]
[Source "ChessBase"]
[SourceQuality "1"]
[TimeControl "40/5400+30:1800+30"]

1. e4 {[%emt 0:00:00]} d5 {[%emt 0:00:00]} 2. exd5 {[%emt 0:00:00]} Nf6 {[%emt 0:00:02]} 3. Nf3 {[%emt 0:03:50]} Nxd5 {[%emt 0:00:21]} 4. b3 {[%emt 0:00:44]} Bf5 {[%emt 0:07:24]} 5. Bb2 {[%emt 0:00:57]} e6 {[%emt 0:00:16]} 6. g3 {[%emt 0:12:23]} h6 {[%emt 0:11:27]} 7. Bg2 {[%emt 0:02:54]} Nc6 {[%emt 0:01:11]} 8. O-O {[%emt 0:01:00]} Nf6 {[%emt 0:01:56]} 9. d3 {[%emt 0:16:06]} Be7 {[%emt 0:00:20]} 10. Nbd2 {[%emt 0:00:21]} O-O {[%emt 0:00:38]} 11. Qe2 {[%emt 0:01:03]} a5 {[%emt 0:11:26]} 12. a3 {[%emt 0:01:02]} Re8 {[%emt 0:06:00]} 13. Ne4 {[%emt 0:07:36]} Bh7 {[%emt 0:02:12]} 14. Rad1 {[%emt 0:02:59]} e5 {[%emt 0:22:11]} 15. Nxe5 {[%emt 0:13:05]} Nxe5 {[%emt 0:01:35]} 16. Bxe5 {[%emt 0:00:19]} Nd7 {[%emt 0:00:27]} 17. Ba1 {[%emt 0:08:01]} Bxa3 {[%emt 0:02:56]} 18. Qg4 {[%emt 0:04:33]} Bf8 {[%emt 0:04:42]} 19. Qf4 {[%emt 0:03:00]} a4 {[%emt 0:04:21]} 20. bxa4 {[%emt 0:00:57]} Rxa4 {[%emt 0:03:01]} 21. Nf6+ {[%emt 0:01:26]} Nxf6 {[%emt 0:01:22]} 22. Qxa4 {[%emt 0:00:17]} c6 {[%emt 0:01:06]} 23. Rfe1 {[%emt 0:00:28]} Rxe1+ {[%emt 0:00:18]} 24. Rxe1 {[%emt 0:00:03]} Bf5 {[%emt 0:00:40]} 25. Qf4 {[%emt 0:02:56]} Qa5 {[%emt 0:00:14]} 26. Qe5 {[%emt 0:02:01]} Qd2 {[%emt 0:01:45]} 27. Qe2 {[%emt 0:00:42]} Qb4 {[%emt 0:00:40]} 28. Bxf6 {[%emt 0:05:25]} gxf6 {[%emt 0:00:05]} 29. h3 {[%emt 0:00:34]} h5 {[%emt 0:01:26]} 30. Kh2 {[%emt 0:01:06]} Bc5 {[%emt 0:03:59]} 31. Ra1 {[%emt 0:00:36]} Bg6 {[%emt 0:02:50]} 32. h4 {[%emt 0:03:01]} Bf8 {[%emt 0:01:20]} 33. Ra8 {[%emt 0:00:27]} Kh7 {[%emt 0:02:28]} 34. Be4 {[%emt 0:00:36]} Qc5 {[%emt 0:00:38]} 35. Bxg6+ {[%emt 0:00:14]} Kxg6 {[%emt 0:00:11]} 36. Rb8 {[%emt 0:01:13]} b5 {[%emt 0:00:26]} 37. Rc8 {[%emt 0:00:20]} Kg7 {[%emt 0:01:12]} 38. Kg1 {[%emt 0:00:39]} b4 {[%emt 0:01:54]} 39. Qe8 {[%emt 0:00:27]} b3 40. cxb3 {[%emt 0:00:00]} f5 {[%emt 0:00:00]} 41. Qxc6 {[%emt 0:00:47]} Qa3 {[%emt 0:04:21]} 42. Qe8 {[%emt 0:00:28]} Qa1+ {[%emt 0:02:08]} 43. Kg2 {[%emt 0:00:10]} f4 {[%emt 0:00:20]} 44. Qxf8+ {[%emt 0:00:09]} 1-0

[Event "UKR-chT 2019"]
[Site "Chornomorsk"]
[Date "2019.05.26"]
[Round "7.2"]
[White "Bondarets, Vadim"]
[Black "Brodsky, Michail"]
[Result "0-1"]
[ECO "A06"]
[WhiteElo "2236"]
[BlackElo "2535"]
[Annotator "ChessBase"]
[PlyCount "68"]
[EventDate "2019.05.20"]
[EventCountry "UKR"]
[SourceTitle "playchess.com"]
[Source "ChessBase"]
[SourceQuality "1"]
[TimeControl "40/5400+30:1800+30"]

1. Nf3 {[%emt 0:00:00]} d5 {[%emt 0:00:00]} 2. c4 {[%emt 0:00:00]} e6 {[%emt 0:00:00]} 3. b3 {[%emt 0:00:00]} c5 {[%emt 0:00:51]} 4. cxd5 {[%emt 0:00:44]} exd5 {[%emt 0:00:02]} 5. Bb2 {[%emt 0:00:50]} Nf6 {[%emt 0:03:56]} 6. g3 {[%emt 0:00:21]} Nc6 {[%emt 0:02:04]} 7. Bg2 {[%emt 0:00:23]} d4 {[%emt 0:00:19]} 8. O-O {[%emt 0:00:21]} Be7 {[%emt 0:00:10]} 9. Na3 {[%emt 0:06:49]} O-O {[%emt 0:01:12]} 10. Re1 {[%emt 0:12:50]} Nd5 {[%emt 0:06:31]} 11. Nc4 {[%emt 0:08:01]} Bf6 {[%emt 0:09:29]} 12. e4 {[%emt 0:09:56]} Ndb4 {[%emt 0:00:49]} 13. d3 {[%emt 0:01:32]} b5 {[%emt 0:00:43]} 14. Na3 {[%emt 0:00:18]} Qb6 {[%emt 0:04:01]} 15. Nc2 {[%emt 0:02:40]} Be6 {[%emt 0:02:23]} 16. Nxb4 {[%emt 0:01:00]} Nxb4 {[%emt 0:00:02]} 17. Ba3 {[%emt 0:04:05]} a5 {[%emt 0:00:38]} 18. Bxb4 {[%emt 0:00:34]} axb4 {[%emt 0:00:01]} 19. e5 {[%emt 0:00:22]} Be7 {[%emt 0:00:14]} 20. Nd2 {[%emt 0:00:27]} Ra3 21. f4 {[%emt 0:08:26]} g6 {[%emt 0:04:39]} 22. Qe2 {[%emt 0:19:00]} Qa7 {[%emt 0:10:57]} 23. Ne4 {[%emt 0:04:58]} Bxb3 {[%emt 0:00:52]} 24. f5 {[%emt 0:02:38]} gxf5 {[%emt 0:32:35]} 25. Nf6+ {[%emt 0:00:38]} Bxf6 {[%emt 0:00:39]} 26. exf6 {[%emt 0:00:09]} Qa6 {[%emt 0:04:36]} 27. Qd2 {[%emt 0:03:34]} Qxf6 {[%emt 0:00:17]} 28. axb3 {[%emt 0:01:45]} Rxb3 {[%emt 0:00:01]} 29. Bd5 {[%emt 0:00:28]} Rc3 {[%emt 0:01:00]} 30. Ra7 {[%emt 0:00:50]} b3 {[%emt 0:00:50]} 31. Ree7 {[%emt 0:02:05]} Rc2 {[%emt 0:00:36]} 32. Qd1 {[%emt 0:00:40]} Qh6 {[%emt 0:00:15]} 33. Bxf7+ {[%emt 0:03:54]} Rxf7 {[%emt 0:00:49]} 34. Re8+ {[%emt 0:04:28]} Kg7 0-1

[Event "UKR-chT 2019"]
[Site "Chornomorsk"]
[Date "2019.05.26"]
[Round "7.3"]
[White "Zavgorodniy, Sergiy"]
[Black "Zolotariov, Georgiy"]
[Result "1-0"]
[ECO "B08"]
[WhiteElo "2420"]
[BlackElo "1895"]
[Annotator "NA"]
[PlyCount "71"]
[EventDate "2019.05.20"]
[EventCountry "UKR"]
[SourceTitle "playchess.com"]
[Source "ChessBase"]
[SourceQuality "1"]
[TimeControl "40/5400+30:1800+30"]

1. e4 {[%emt 0:00:00]} d6 {[%emt 0:01:57]} 2. d4 {[%emt 0:00:00]} Nf6 {[%emt 0:00:04]} 3. Nc3 {[%emt 0:00:05]} g6 {[%emt 0:00:01]} 4. Nf3 {[%emt 0:01:00]} Bg7 {[%emt 0:00:03]} 5. h3 {[%emt 0:00:41]} O-O {[%emt 0:01:45]} 6. Be2 {[%emt 0:00:14]} Nbd7 {[%emt 0:01:09]} 7. O-O {[%emt 0:00:40]} e5 {[%emt 0:04:48]} 8. Re1 {[%emt 0:01:23]} Re8 {[%emt 0:03:58]} 9. dxe5 {[%emt 0:04:48]} dxe5 {[%emt 0:00:33]} 10. Bc4 {[%emt 0:00:16]} Qe7 {[%emt 0:08:54]} 11. a4 {[%emt 0:01:13]} Nb6 {[%emt 0:21:24]} 12. Bb3 {[%emt 0:20:17]} Be6 {[%emt 0:05:12]} 13. a5 {[%emt 0:01:32]} Bxb3 {[%emt 0:07:24]} 14. axb6 {[%emt 0:07:24]} Bc4 {[%emt 0:02:57]} 15. bxa7 {[%emt 0:02:30]} Red8 {[%emt 0:02:25]} 16. Bd2 {[%emt 0:00:26]} c6 {[%emt 0:11:09]} 17. Qc1 {[%emt 0:02:20]} b6 {[%emt 0:06:45]} 18. Be3 {[%emt 0:21:02]} Qc7 {[%emt 0:00:14]} 19. b3 {[%emt 0:01:10]} Be6 {[%emt 0:00:46]} 20. Ra6 {[%emt 0:00:24]} Nd7 {[%emt 0:05:12]} 21. Rd1 {[%emt 0:00:57]} Bf8 {[%emt 0:04:45]} 22. Qa1 {[%emt 0:09:51]} f6 {[%emt 0:00:36]} 23. Na4 {[%emt 0:01:03]} c5 {[%emt 0:00:49]} 24. Nc3 {[%emt 0:00:32]} c4 {[%emt 0:03:42]} 25. Nd5 {[%emt 0:04:03]} Bxd5 {[%emt 0:00:45]} 26. Rxd5 {[%emt 0:00:02]} cxb3 {[%emt 0:01:51]} 27. cxb3 {[%emt 0:00:12]} Nc5 {[%emt 0:00:42]} 28. Bxc5 {[%emt 0:01:12]} Bxc5 {[%emt 0:00:15]} 29. Qd1 {[%emt 0:01:59]} Bd6 {[%emt 0:02:29]} 30. Nd2 {[%emt 0:03:28]} b5 {[%emt 0:00:57]} 31. Nb1 {[%emt 0:00:24]} Be7 {[%emt 0:01:01]} 32. Rxd8+ {[%emt 0:00:13]} Qxd8 {[%emt 0:00:05]} 33. Qxd8+ {[%emt 0:00:42]} Bxd8 {[%emt 0:00:02]} 34. Nc3 {[%emt 0:00:13]} b4 {[%emt 0:00:22]} 35. Nd5 {[%emt 0:00:07]} Kf7 {[%emt 0:00:12]} 36. Nxb4 {[%emt 0:00:11]} 1-0

[Event "UKR-chT 2019"]
[Site "Chornomorsk"]
[Date "2019.05.26"]
[Round "7.4"]
[White "Kamnev, Alexandr"]
[Black "Voitovich, Vladislav"]
[Result "1/2-1/2"]
[ECO "C48"]
[WhiteElo "1868"]
[BlackElo "2325"]
[Annotator "NA"]
[PlyCount "38"]
[EventDate "2019.05.20"]
[EventCountry "UKR"]
[SourceTitle "playchess.com"]
[Source "ChessBase"]
[SourceQuality "1"]
[TimeControl "40/5400+30:1800+30"]

1. e4 {[%emt 0:00:00]} Nf6 {[%emt 0:00:00]} 2. Nc3 {[%emt 0:00:22]} e5 {[%emt 0:00:13]} 3. Nf3 {[%emt 0:01:00]} Nc6 {[%emt 0:02:29]} 4. Bb5 {[%emt 0:02:04]} Bc5 {[%emt 0:11:54]} 5. O-O {[%emt 0:09:30]} Qe7 {[%emt 0:02:05]} 6. d3 {[%emt 0:03:20]} a6 {[%emt 0:01:05]} 7. Ba4 {[%emt 0:05:35]} h6 {[%emt 0:02:26]} 8. Nd5 {[%emt 0:07:10]} Nxd5 {[%emt 0:23:02]} 9. exd5 {[%emt 0:01:37]} Nd4 {[%emt 0:00:50]} 10. Nxe5 {[%emt 0:02:31]} O-O {[%emt 0:00:30]} 11. Re1 {[%emt 0:01:06]} b5 {[%emt 0:03:38]} 12. Bb3 {[%emt 0:17:30]} d6 {[%emt 0:04:38]} 13. Ng6 {[%emt 0:10:22]} Qf6 {[%emt 0:00:59]} 14. Nxf8 {[%emt 0:01:22]} Nxb3 {[%emt 0:00:40]} 15. Re8 {[%emt 0:00:30]} Qxf2+ {[%emt 0:01:00]} 16. Kh1 {[%emt 0:00:15]} Bh3 {[%emt 0:00:52]} 17. gxh3 {[%emt 0:10:59]} Rxe8 {[%emt 0:00:08]} 18. Be3 {[%emt 0:01:12]} Rxe3 {[%emt 0:00:41]} 19. axb3 {[%emt 0:00:12]} Re1+ {[%emt 0:00:21]} 1/2-1/2

[Event "UKR-chT 2019"]
[Site "Chornomorsk"]
[Date "2019.05.26"]
[Round "7.5"]
[White "Doluhanova, Evgeniya"]
[Black "Barchuk, Irina"]
[Result "1-0"]
[ECO "B51"]
[WhiteElo "2319"]
[BlackElo "2008"]
[Annotator "NA"]
[PlyCount "109"]
[EventDate "2019.05.20"]
[EventCountry "UKR"]
[SourceTitle "playchess.com"]
[Source "ChessBase"]
[SourceQuality "1"]
[TimeControl "40/5400+30:1800+30"]

1. e4 {[%emt 0:00:00]} c5 {[%emt 0:00:00]} 2. Nf3 {[%emt 0:00:00]} d6 {[%emt 0:00:00]} 3. Bb5+ {[%emt 0:00:00]} Nd7 {[%emt 0:00:00]} 4. c3 {[%emt 0:00:12]} g6 {[%emt 0:00:07]} 5. d4 {[%emt 0:01:19]} cxd4 {[%emt 0:00:17]} 6. cxd4 {[%emt 0:09:27]} Ngf6 {[%emt 0:02:18]} 7. Nc3 {[%emt 0:00:42]} a6 {[%emt 0:00:13]} 8. Ba4 {[%emt 0:02:47]} b5 {[%emt 0:01:16]} 9. Bb3 {[%emt 0:06:21]} Bb7 {[%emt 0:03:58]} 10. Ng5 {[%emt 0:02:24]} e6 {[%emt 0:01:12]} 11. d5 {[%emt 0:03:33]} e5 {[%emt 0:01:13]} 12. a3 {[%emt 0:01:09]} Bg7 {[%emt 0:00:30]} 13. O-O {[%emt 0:00:30]} h6 {[%emt 0:03:04]} 14. Nh3 {[%emt 0:03:12]} O-O {[%emt 0:01:09]} 15. Be3 {[%emt 0:00:15]} Nc5 {[%emt 0:01:38]} 16. Bc2 {[%emt 0:00:42]} Bc8 {[%emt 0:03:11]} 17. b4 {[%emt 0:07:51]} Nb7 {[%emt 0:06:01]} 18. a4 {[%emt 0:09:49]} Bxh3 {[%emt 0:00:20]} 19. gxh3 {[%emt 0:00:05]} Qc8 {[%emt 0:01:24]} 20. Qd3 {[%emt 0:00:15]} Qxh3 {[%emt 0:00:28]} 21. Bd2 {[%emt 0:00:20]} Qxd3 {[%emt 0:06:02]} 22. Bxd3 {[%emt 0:00:05]} bxa4 {[%emt 0:00:10]} 23. Nxa4 {[%emt 0:03:34]} a5 {[%emt 0:01:08]} 24. bxa5 {[%emt 0:03:52]} Nxa5 {[%emt 0:02:14]} 25. Rfb1 {[%emt 0:09:00]} Nxd5 {[%emt 0:18:32]} 26. exd5 {[%emt 0:13:48]} e4 {[%emt 0:00:03]} 27. Nb6 {[%emt 0:00:26]} Bxa1 {[%emt 0:00:27]} 28. Nxa8 {[%emt 0:08:49]} exd3 {[%emt 0:05:05]} 29. Nb6 {[%emt 0:00:28]} Bd4 {[%emt 0:01:21]} 30. Bxa5 {[%emt 0:00:11]} Rb8 {[%emt 0:00:02]} 31. Kf1 {[%emt 0:00:11]} f5 {[%emt 0:00:40]} 32. Ke1 {[%emt 0:00:31]} f4 {[%emt 0:01:09]} 33. Kd2 {[%emt 0:06:03]} Bxf2 {[%emt 0:00:03]} 34. Kxd3 {[%emt 0:00:05]} g5 {[%emt 0:00:13]} 35. h3 {[%emt 0:00:31]} Kf7 {[%emt 0:02:14]} 36. Rb2 {[%emt 0:00:44]} Bc5 {[%emt 0:00:31]} 37. Nc4 {[%emt 0:01:29]} Ra8 {[%emt 0:05:00]} 38. Ke4 {[%emt 0:03:02]} Kg6 {[%emt 0:00:09]} 39. Kf3 {[%emt 0:00:13]} h5 {[%emt 0:01:39]} 40. Rb7 {[%emt 0:00:00]} Rf8 {[%emt 0:00:00]} 41. Bb4 {[%emt 0:07:33]} Kf5 {[%emt 0:02:07]} 42. Bxc5 {[%emt 0:06:50]} g4+ {[%emt 0:00:07]} 43. Kf2 {[%emt 0:00:54]} dxc5 {[%emt 0:00:06]} 44. d6 {[%emt 0:01:46]} gxh3 {[%emt 0:06:52]} 45. Rh7 {[%emt 0:01:30]} Kg6 {[%emt 0:07:45]} 46. Re7 {[%emt 0:00:27]} h2 {[%emt 0:01:18]} 47. Re1 {[%emt 0:03:18]} Re8 {[%emt 0:12:31]} 48. Rh1 {[%emt 0:01:56]} Re4 {[%emt 0:00:16]} 49. d7 {[%emt 0:00:36]} Rd4 {[%emt 0:00:04]} 50. Rxh2 {[%emt 0:01:20]} Kf6 {[%emt 0:00:23]} 51. Nb6 {[%emt 0:00:11]} Ke7 {[%emt 0:00:43]} 52. Rxh5 {[%emt 0:00:11]} Kd8 {[%emt 0:01:06]} 53. Rxc5 {[%emt 0:00:53]} Rd6 {[%emt 0:00:08]} 54. Rc8+ {[%emt 0:00:10]} Ke7 {[%emt 0:00:02]} 55. Re8+ {[%emt 0:00:10]} 1-0

[Event "UKR-chT 2019"]
[Site "Chornomorsk"]
[Date "2019.05.26"]
[Round "7.6"]
[White "Mats, Diana"]
[Black "Maly, Alexey"]
[Result "0-1"]
[ECO "B10"]
[WhiteElo "2056"]
[BlackElo "2349"]
[Annotator "NA"]
[PlyCount "58"]
[EventDate "2019.05.20"]
[EventCountry "UKR"]
[SourceTitle "playchess.com"]
[Source "ChessBase"]
[SourceQuality "1"]
[TimeControl "40/5400+30:1800+30"]

1. e4 {[%emt 0:00:00]} c6 {[%emt 0:00:00]} 2. c4 {[%emt 0:01:56]} d5 {[%emt 0:00:00]} 3. exd5 {[%emt 0:00:25]} cxd5 {[%emt 0:00:00]} 4. cxd5 {[%emt 0:00:15]} Nf6 {[%emt 0:00:03]} 5. Qa4+ {[%emt 0:00:17]} Nbd7 {[%emt 0:00:26]} 6. Nc3 {[%emt 0:00:26]} g6 {[%emt 0:00:13]} 7. Bc4 {[%emt 0:02:38]} Bg7 {[%emt 0:00:08]} 8. d3 {[%emt 0:06:41]} O-O {[%emt 0:00:08]} 9. Nge2 {[%emt 0:04:47]} a6 {[%emt 0:00:30]} 10. Qa3 {[%emt 0:00:18]} Nb6 {[%emt 0:07:40]} 11. Qb3 {[%emt 0:00:39]} Nbd7 {[%emt 0:31:47]} 12. a4 {[%emt 0:01:49]} Ne8 {[%emt 0:00:40]} 13. O-O {[%emt 0:01:55]} Nd6 {[%emt 0:04:13]} 14. Be3 {[%emt 0:11:06]} Nf5 {[%emt 0:03:56]} 15. a5 {[%emt 0:12:11]} Nxe3 {[%emt 0:13:36]} 16. fxe3 {[%emt 0:00:30]} b5 {[%emt 0:03:29]} 17. axb6 {[%emt 0:00:31]} Nxb6 {[%emt 0:00:03]} 18. Kh1 {[%emt 0:04:24]} Nxc4 {[%emt 0:06:42]} 19. dxc4 {[%emt 0:01:47]} e6 {[%emt 0:00:06]} 20. Nd4 {[%emt 0:10:35]} exd5 {[%emt 0:00:59]} 21. Nxd5 {[%emt 0:00:10]} Qg5 {[%emt 0:09:15]} 22. c5 {[%emt 0:05:05]} Bxd4 {[%emt 0:03:52]} 23. exd4 {[%emt 0:03:08]} Be6 {[%emt 0:00:10]} 24. Nf6+ {[%emt 0:00:21]} Qxf6 {[%emt 0:00:27]} 25. d5 {[%emt 0:01:33]} Bf5 {[%emt 0:00:34]} 26. c6 {[%emt 0:06:58]} Qd6 {[%emt 0:02:55]} 27. Ra4 {[%emt 0:09:28]} Rfb8 {[%emt 0:00:54]} 28. Qa2 {[%emt 0:03:00]} Bd3 {[%emt 0:01:23]} 29. Rd1 {[%emt 0:02:17]} Bc2 {[%emt 0:00:30]} 0-1

[Event "UKR-chT 2019"]
[Site "Chornomorsk"]
[Date "2019.05.27"]
[Round "8.4"]
[White "Makarov, Pavlo"]
[Black "Omelja, Artem"]
[Result "1/2-1/2"]
[ECO "E61"]
[WhiteElo "2192"]
[BlackElo "2451"]
[Annotator "ChessBase"]
[PlyCount "85"]
[EventDate "2019.05.20"]
[EventCountry "UKR"]
[SourceTitle "playchess.com"]
[Source "ChessBase"]
[SourceQuality "1"]
[TimeControl "40/5400+30:1800+30"]

1. d4 {[%emt 0:00:00]} Nf6 {[%emt 0:00:00]} 2. c4 {[%emt 0:00:00]} g6 {[%emt 0:00:00]} 3. Nc3 {[%emt 0:00:00]} Bg7 {[%emt 0:00:00]} 4. Nf3 {[%emt 0:00:29]} O-O {[%emt 0:00:04]} 5. e4 {[%emt 0:02:31]} d6 {[%emt 0:00:08]} 6. h3 {[%emt 0:00:08]} c5 {[%emt 0:00:32]} 7. d5 {[%emt 0:00:48]} e6 {[%emt 0:00:11]} 8. Bd3 {[%emt 0:01:20]} exd5 {[%emt 0:00:09]} 9. exd5 {[%emt 0:01:11]} Re8+ {[%emt 0:00:17]} 10. Be3 {[%emt 0:00:02]} Bh6 {[%emt 0:00:21]} 11. O-O {[%emt 0:00:05]} Bxe3 {[%emt 0:00:27]} 12. fxe3 {[%emt 0:00:03]} Nbd7 {[%emt 0:01:56]} 13. Qd2 {[%emt 0:02:10]} Ne5 {[%emt 0:03:07]} 14. Nxe5 {[%emt 0:02:54]} Rxe5 {[%emt 0:00:08]} 15. Rf3 {[%emt 0:02:58]} Ne8 {[%emt 0:00:41]} 16. Raf1 {[%emt 0:00:54]} f6 {[%emt 0:00:59]} 17. Qf2 {[%emt 0:17:20]} Qe7 {[%emt 0:07:29]} 18. Ne2 {[%emt 0:05:27]} Bd7 {[%emt 0:04:33]} 19. g4 {[%emt 0:16:21]} Rb8 {[%emt 0:02:26]} 20. Nf4 {[%emt 0:01:11]} Qg7 {[%emt 0:02:47]} 21. b3 {[%emt 0:02:40]} b6 {[%emt 0:01:00]} 22. Bc2 {[%emt 0:01:48]} b5 {[%emt 0:03:29]} 23. Nd3 {[%emt 0:03:17]} Rg5 {[%emt 0:08:54]} 24. Qh4 {[%emt 0:05:09]} h6 {[%emt 0:02:36]} 25. e4 {[%emt 0:00:48]} bxc4 {[%emt 0:01:31]} 26. bxc4 {[%emt 0:00:06]} f5 {[%emt 0:13:00]} 27. Kh1 {[%emt 0:05:44]} Nf6 {[%emt 0:01:56]} 28. exf5 {[%emt 0:09:51]} gxf5 {[%emt 0:00:13]} 29. Nf4 {[%emt 0:01:43]} Rb2 {[%emt 0:12:14]} 30. R3f2 {[%emt 0:04:18]} Rxc2 {[%emt 0:21:45]} 31. Rxc2 {[%emt 0:00:17]} fxg4 {[%emt 0:00:07]} 32. Re2 {[%emt 0:06:10]} gxh3 {[%emt 0:02:51]} 33. Ne6 {[%emt 0:01:59]} Bxe6 {[%emt 0:01:42]} 34. Rxe6 {[%emt 0:01:36]} Rh5 {[%emt 0:04:01]} 35. Qf2 {[%emt 0:00:49]} Rf5 {[%emt 0:00:51]} 36. Qe2 {[%emt 0:00:57]} Nh5 {[%emt 0:00:55]} 37. Kh2 {[%emt 0:04:27]} Qg3+ {[%emt 0:03:08]} 38. Kh1 {[%emt 0:00:04]} Qg7 {[%emt 0:00:29]} 39. Kh2 {[%emt 0:00:37]} Qg3+ {[%emt 0:00:57]} 40. Kh1 {[%emt 0:00:00]} Qg7 41. Kh2 Ng3 42. Rg1 Nxe2 43. Rxe2 1/2-1/2